bitfinex/quotes_BTCUSD_20230101
["timestamp","ask_amount","ask_price","bid_price","bid_amount"]
[1672589917608,0.63449941,16582.0,16581.0,4.66820645]
[1672589919707,0.63449941,16582.0,16581.0,4.96975645]
[1672589919967,0.63449941,16582.0,16581.0,4.49965327]
[1672589920570,0.45334209,16582.0,16581.0,4.49965327]
[1672589923442,0.45334209,16582.0,16581.0,3.79965327]
[1672589923663,0.45334209,16582.0,16581.0,3.79964327]
[1672589924409,0.45334209,16582.0,16581.0,4.49964327]
[1672589925029,0.45334209,16582.0,16581.0,4.49965327]
[1672589926756,0.45334209,16582.0,16581.0,4.96975645]
[1672589927720,0.45334209,16582.0,16581.0,4.19810327]
[1672589927962,0.45334209,16582.0,16581.0,4.49965327]
[1672589928467,0.45334209,16582.0,16581.0,4.49964327]
[1672589929000,0.45334209,16582.0,16581.0,4.96974645]
[1672589930416,0.45334209,16582.0,16581.0,4.26974645]
[1672589931436,0.45334209,16582.0,16581.0,4.96974645]
[1672589931678,0.45334209,16582.0,16581.0,4.96975645]
[1672589932207,0.45334209,16582.0,16581.0,4.96974645]
[1672589932462,0.45334209,16582.0,16581.0,4.96975645]
[1672589932700,0.81547708,16582.0,16581.0,4.66633516]
[1672589932940,0.63449941,16582.0,16581.0,4.55409516]
[1672589934181,0.63449941,16582.0,16581.0,4.66633516]
[1672589934428,0.8155326,16582.0,16581.0,4.66633516]
[1672589934958,0.63449941,16582.0,16581.0,4.66633516]
[1672589935452,0.81554375,16582.0,16581.0,4.66633516]
[1672589935703,0.45340876,16582.0,16581.0,4.66633516]
[1672589935967,0.81554375,16582.0,16581.0,4.66633516]
[1672589936461,0.81554375,16582.0,16581.0,4.55409516]
[1672589936706,0.63449941,16582.0,16581.0,4.55409516]
[1672589937198,0.63449941,16582.0,16581.0,4.85564516]
[1672589937450,0.63449941,16582.0,16581.0,4.15564516]
[1672589938196,0.63449941,16582.0,16581.0,3.68554198]
[1672589938456,0.63449941,16582.0,16581.0,4.38554198]
[1672589938702,0.63449941,16582.0,16581.0,4.49778198]
[1672589939825,0.63449941,16582.0,16581.0,4.49787109]
[1672589940562,1.08661641,16582.0,16581.0,4.49769178]
[1672589940786,0.63449941,16582.0,16581.0,4.49778089]
[1672589941300,1.08661641,16582.0,16581.0,4.38554089]
[1672589941524,1.08661641,16582.0,16581.0,4.49778089]
[1672589941748,0.63449941,16582.0,16581.0,4.49778089]
[1672589942243,0.63449941,16582.0,16581.0,4.38554089]
[1672589942731,1.08661641,16582.0,16581.0,4.38554089]
[1672589942988,0.63449941,16582.0,16581.0,4.49778089]
[1672589944283,0.63449941,16582.0,16581.0,3.79778089]
[1672589944534,0.63449941,16582.0,16581.0,3.68554089]
[1672589944753,1.08661641,16582.0,16581.0,3.68554089]
[1672589944991,0.63449941,16582.0,16581.0,3.38399089]
[1672589945478,0.63449941,16582.0,16581.0,4.66633407]
[1672589945940,1.08661641,16582.0,16581.0,4.19623089]
[1672589946188,1.08661641,16582.0,16581.0,4.66633407]
[1672589946645,0.63449941,16582.0,16581.0,4.66633407]
[1672589947116,0.63449941,16582.0,16581.0,4.66651374]
[1672589948743,0.63449941,16582.0,16581.0,4.49795056]
[1672589948986,0.63449941,16582.0,16581.0,4.19641056]
[1672589949701,0.63449941,16582.0,16581.0,4.66651374]
[1672589950607,0.63449941,16582.0,16581.0,4.19641056]
[1672589950863,0.63449941,16582.0,16581.0,4.66651374]
[1672589951352,0.63449941,16582.0,16581.0,3.49641056]
[1672589951595,0.63449941,16582.0,16581.0,3.38417056]
[1672589951840,0.63358713,16582.0,16581.0,3.38417056]
[1672589952055,0.63358713,16582.0,16581.0,3.49641056]
[1672589952301,0.63358713,16582.0,16581.0,3.38417056]
[1672589952553,0.63358713,16582.0,16581.0,4.08417056]
[1672589952767,0.63358713,16582.0,16581.0,4.19641056]
[1672589954614,0.63358713,16582.0,16581.0,4.49796056]
[1672589955747,1.08570413,16582.0,16581.0,4.49796056]
[1672589956254,0.63358713,16582.0,16581.0,4.49796056]
[1672589956549,0.63358713,16582.0,16581.0,4.96806374]
[1672589958546,0.63358713,16582.0,16581.0,4.26806374]
[1672589959014,0.63358713,16582.0,16581.0,4.26805374]
[1672589959276,0.63358713,16582.0,16581.0,3.96651374]
[1672589959523,0.63358713,16582.0,16581.0,4.96805374]
[1672589960484,1.08570413,16582.0,16581.0,4.96805374]
[1672589960732,1.08570413,16582.0,16581.0,4.66651374]
[1672589961716,0.8143111,16582.0,16581.0,3.89632145]
[1672589961988,0.8143111,16582.0,16581.0,4.25418463]
[1672589963244,0.8143111,16582.0,16581.0,3.55418463]
[1672589964006,0.8143111,16582.0,16581.0,3.85573463]
[1672589964257,0.8143111,16582.0,16581.0,3.38563145]
[1672589964758,0.8143111,16582.0,16581.0,4.08563145]
[1672589965001,0.8143111,16582.0,16581.0,4.19787145]
[1672589965256,0.8143111,16582.0,16581.0,4.19796056]
[1672589965754,0.8143111,16582.0,16581.0,3.89641056]
[1672589965996,0.8143111,16582.0,16581.0,4.36651374]
[1672589966244,0.8143111,16582.0,16581.0,4.25427374]
[1672589966725,0.8143111,16582.0,16581.0,4.36651374]
[1672589967676,0.8143111,16582.0,16581.0,4.66651374]
[1672589968922,0.63379934,16582.0,16581.0,4.66651374]
[1672589970150,0.63379934,16582.0,16581.0,4.96805374]
[1672589970922,0.81487275,16582.0,16581.0,4.96805374]
[1672589972411,0.81486822,16582.0,16581.0,4.96805374]
[1672589972656,0.63379934,16582.0,16581.0,4.96805374]
[1672589972906,0.81486853,16582.0,16581.0,4.96805374]
[1672589973150,0.45267443,16582.0,16581.0,4.96805374]
[1672589974458,0.18106919,16582.0,16581.0,4.96805374]
[1672589976338,0.18106919,16582.0,16581.0,4.96798014]
[1672589976599,0.18106919,16582.0,16581.0,4.4203067]
[1672589976829,0.18106919,16582.0,16581.0,4.95507829]
[1672589977653,0.45267443,16583.0,16582.0,0.5]
[1672589977900,0.45267443,16583.0,16582.0,3.77929218]
[1672589978152,0.45267443,16583.0,16582.0,3.89152118]
[1672589978949,0.45267443,16583.0,16582.0,3.89752118]
[1672589979205,0.52067443,16583.0,16582.0,4.40327015]
[1672589982893,0.24906919,16583.0,16582.0,4.40327015]
[1672589985220,0.52067443,16583.0,16582.0,4.40327015]
[1672589985716,0.24906919,16583.0,16582.0,4.40327015]
[1672589986212,0.068,16583.0,16582.0,4.51833618]
[1672589986464,0.068,16583.0,16582.0,4.98284902]
[1672589986972,0.068,16583.0,16582.0,5.09033712]
[1672589989299,0.068,16583.0,16582.0,4.90992606]
[1672589992504,0.068,16583.0,16582.0,4.46952212]
[1672590002650,0.068,16583.0,16582.0,3.76952212]
[1672590003654,0.068,16583.0,16582.0,4.46952212]
[1672590005153,0.068,16583.0,16582.0,4.77102212]
[1672590005407,0.068,16583.0,16582.0,4.46952212]
[1672590010959,0.068,16583.0,16582.0,2.9226771]
[1672590011209,1.04498995,16583.0,16582.0,2.6226771]
[1672590011486,1.57552462,16583.0,16582.0,2.01949792]
[1672590011738,1.66544752,16583.0,16582.0,2.01949792]
[1672590012001,1.21333052,16583.0,16582.0,0.8134881]
[1672590012510,1.21333052,16583.0,16582.0,0.1134881]
[1672590013034,1.04426884,16583.0,16582.0,0.1134881]
[1672590013535,1.66528384,16583.0,16582.0,0.1134881]
[1672590013785,1.66528384,16583.0,16582.0,0.7165511]
[1672590014045,1.66528384,16583.0,16582.0,1.3196141]
[1672590014553,1.40574698,16583.0,16582.0,1.3196141]
[1672590014806,1.40574693,16583.0,16582.0,1.32148527]
[1672590015308,1.40574693,16583.0,16582.0,1.3196141]
[1672590016616,1.40567033,16583.0,16582.0,1.3196141]
[1672590017141,2.02668533,16583.0,16582.0,1.3196141]
[1672590017658,2.02668533,16583.0,16582.0,0.7165511]
[1672590017989,1.66520724,16583.0,16582.0,0.7165511]
[1672590018413,2.02651959,16583.0,16582.0,0.7165511]
[1672590018910,1.66520724,16583.0,16582.0,0.7165511]
[1672590019166,2.02649542,16583.0,16582.0,0.7165511]
[1672590019406,1.66520724,16583.0,16582.0,0.7165511]
[1672590020835,2.02643401,16583.0,16582.0,0.7165511]
[1672590023153,1.66520724,16583.0,16582.0,0.7165511]
[1672590023894,2.02632508,16583.0,16582.0,0.71664464]
[1672590024436,2.29714101,16583.0,16582.0,0.71664464]
[1672590024667,2.02632508,16583.0,16582.0,0.71664464]
[1672590024909,2.29714111,16583.0,16582.0,0.71664464]
[1672590025158,1.84518779,16583.0,16582.0,1.31970764]
[1672590025398,1.66459227,16583.0,16582.0,1.31970764]
[1672590025729,1.04357727,16583.0,16582.0,1.31970764]
[1672590026205,0.51926175,16583.0,16582.0,1.31970764]
[1672590026462,0.51926175,16583.0,16582.0,1.92277064]
[1672590026681,0.24844572,16583.0,16582.0,1.9226771]
[1672590026931,0.51926175,16583.0,16582.0,1.92277064]
[1672590027179,0.24844572,16583.0,16582.0,1.92277064]
[1672590027934,0.51926175,16583.0,16582.0,1.92277064]
[1672590028180,0.24844572,16583.0,16582.0,1.31970764]
[1672590028400,0.51926175,16583.0,16582.0,1.92277064]
[1672590028641,0.51926175,16583.0,16582.0,1.9226771]
[1672590030336,0.51926175,16583.0,16582.0,1.3196141]
[1672590031582,0.24844572,16583.0,16582.0,1.6196141]
[1672590031845,0.24844572,16583.0,16582.0,2.72283552]
[1672590032309,0.24844572,16583.0,16582.0,2.72292906]
[1672590034890,0.24844572,16583.0,16582.0,2.72283552]
[1672590035159,0.24844572,16583.0,16582.0,2.72292906]
[1672590035423,0.24844572,16583.0,16582.0,2.82064465]
[1672590035698,0.24844572,16583.0,16582.0,2.72283552]
[1672590035920,0.24844572,16583.0,16582.0,2.72292906]
[1672590036329,0.24844572,16583.0,16582.0,2.72283552]
[1672590037904,0.51926175,16583.0,16582.0,2.72283552]
[1672590038143,0.51926175,16583.0,16582.0,2.42283552]
[1672590038405,0.51926175,16583.0,16582.0,1.81977252]
[1672590038893,0.51926175,16583.0,16582.0,1.81986606]
[1672590039137,0.51926175,16583.0,16582.0,1.81966842]
[1672590039637,0.69985727,16583.0,16582.0,1.31951]
[1672590041595,1.32914339,16583.0,16582.0,1.31951]
[1672590042351,1.58904055,16583.0,16582.0,1.31951]
[1672590044338,1.13708723,16583.0,16582.0,1.31951]
[1672590044596,0.51607223,16583.0,16582.0,1.31951]
[1672590044843,0.96805716,16583.0,16582.0,1.31951]
[1672590045084,0.51607223,16583.0,16582.0,1.31951]
[1672590046581,1.13708723,16583.0,16582.0,1.31951]
[1672590047299,1.68039428,16583.0,16582.0,1.31951]
[1672590047538,1.05937928,16583.0,16582.0,1.31951]
[1672590047826,1.05937928,16583.0,16582.0,0.716447]
[1672590048072,1.68039428,16583.0,16582.0,0.113384]
[1672590049327,1.13708723,16583.0,16582.0,0.113384]
[1672590049577,1.67972605,16583.0,16582.0,0.113384]
[1672590050334,1.13708723,16583.0,16582.0,0.113384]
[1672590051796,1.13708723,16583.0,16582.0,0.0058959]
[1672590053528,1.67977204,16583.0,16582.0,0.0058959]
[1672590057819,1.67977204,16583.0,16582.0,0.11227312]
[1672590059020,1.13708723,16583.0,16582.0,0.11227312]
[1672590060006,1.67962716,16583.0,16582.0,0.11227312]
[1672590060259,1.13708723,16583.0,16582.0,0.11218349]
[1672590061721,1.67960118,16583.0,16582.0,0.11218349]
[1672590064470,1.67960118,16583.0,16582.0,0.09718349]
[1672590067114,1.05858618,16583.0,16582.0,0.09718349]
[1672590076622,1.67960118,16583.0,16582.0,0.09718349]
[1672590076898,1.13708723,16583.0,16582.0,0.09718349]
[1672590077665,1.67989254,16583.0,16582.0,0.09718349]
[1672590078440,1.13708723,16583.0,16582.0,0.09718349]
[1672590085520,1.92300937,16583.0,16582.0,0.09718349]
[1672590085767,1.74819034,16583.0,16582.0,0.09718349]
[1672590089366,1.74819034,16583.0,16582.0,0.09710989]
[1672590094954,1.13708723,16583.0,16582.0,0.09710989]
[1672590095982,1.74819034,16583.0,16582.0,0.09710989]
[1672590096730,1.13708723,16583.0,16582.0,0.09710989]
[1672590097738,1.74819034,16583.0,16582.0,0.09710989]
[1672590101052,1.86875704,16583.0,16582.0,0.09710989]
[1672590101300,1.74819034,16583.0,16582.0,0.09710989]
[1672590104547,1.13708723,16583.0,16582.0,0.09710989]
[1672590106983,1.13708723,16583.0,16582.0,0.09720343]
[1672590107297,1.13708723,16583.0,16582.0,0.09710989]
[1672590109523,0.51607223,16583.0,16582.0,0.09710989]
[1672590110795,1.13708723,16583.0,16582.0,0.09710989]
[1672590111518,0.51607223,16583.0,16582.0,0.09710989]
[1672590112013,1.13708723,16583.0,16582.0,0.09710989]
[1672590112870,0.51607223,16583.0,16582.0,0.09710989]
[1672590113411,1.13708723,16583.0,16582.0,0.09710989]
[1672590113904,1.13708723,16583.0,16582.0,0.09701925]
[1672590114340,0.91607223,16583.0,16582.0,0.09701925]
[1672590114555,1.53708723,16583.0,16582.0,0.09701925]
[1672590114838,0.51607223,16583.0,16582.0,0.09701925]
[1672590115091,1.13708723,16583.0,16582.0,0.09711279]
[1672590115576,1.13708723,16583.0,16582.0,0.09701925]
[1672590115998,1.13708723,16583.0,16582.0,0.09711279]
[1672590116266,0.51607223,16583.0,16582.0,0.09701925]
[1672590117025,0.51607223,16583.0,16582.0,0.09711279]
[1672590117333,0.51607223,16583.0,16582.0,0.09701925]
[1672590118092,0.51607223,16583.0,16582.0,0.09711279]
[1672590118590,0.51607223,16583.0,16582.0,0.09701925]
[1672590119334,1.12717534,16583.0,16582.0,0.09701925]
[1672590119583,1.74819034,16583.0,16582.0,0.09701925]
[1672590119794,1.12717534,16583.0,16582.0,0.09711279]
[1672590120050,1.74819034,16583.0,16582.0,0.09711279]
[1672590120299,1.74819034,16583.0,16582.0,0.09701925]
[1672590120812,1.12717534,16583.0,16582.0,0.09701925]
[1672590121052,1.74819034,16583.0,16582.0,0.09711279]
[1672590121520,1.12717534,16583.0,16582.0,0.09711279]
[1672590121761,0.0679234,16583.0,16582.0,0.61159153]
[1672590122303,0.6889384,16583.0,16582.0,0.61159153]
[1672590123258,0.0679234,16583.0,16582.0,0.61149799]
[1672590123501,0.0679234,16583.0,16582.0,0.61159153]
[1672590125722,0.0679234,16583.0,16582.0,0.61149799]
[1672590126716,1.14233602,16583.0,16582.0,0.61149799]
[1672590127213,0.52132102,16583.0,16582.0,0.61149799]
[1672590127428,1.14233602,16583.0,16582.0,0.61149799]
[1672590129194,0.52132102,16583.0,16582.0,0.61149799]
[1672590130180,0.52132102,16583.0,16582.0,0.09701925]
[1672590130434,1.14233602,16583.0,16582.0,0.09701925]
[1672590130913,0.52132102,16583.0,16582.0,0.09701925]
[1672590131157,1.14233602,16583.0,16582.0,0.09701925]
[1672590131401,0.52132102,16583.0,16582.0,0.09701925]
[1672590131658,1.14233602,16583.0,16582.0,0.09701925]
[1672590131906,0.52132102,16583.0,16582.0,0.09711279]
[1672590132152,1.14233602,16583.0,16582.0,0.09701925]
[1672590133425,0.52132102,16583.0,16582.0,0.09701925]
[1672590133654,1.14233602,16583.0,16582.0,0.09701925]
[1672590135170,0.52132102,16583.0,16582.0,0.09701925]
[1672590135424,1.14233602,16583.0,16582.0,0.09701925]
[1672590135648,0.52132102,16583.0,16582.0,0.09701925]
[1672590135903,1.14233602,16583.0,16582.0,0.09701925]
[1672590136157,1.75343913,16583.0,16582.0,0.09701925]
[1672590136403,1.14233602,16583.0,16582.0,0.09711279]
[1672590137111,1.14233602,16583.0,16582.0,0.09701925]
[1672590138161,1.14233602,16583.0,16582.0,0.09691598]
[1672590138757,1.75343913,16583.0,16582.0,0.09691598]
[1672590139366,1.75343913,16583.0,16582.0,0.09700952]
[1672590139852,1.13242413,16583.0,16582.0,0.09700952]
[1672590140307,1.75343913,16583.0,16582.0,0.09691598]
[1672590140823,1.14233602,16583.0,16582.0,0.09691598]
[1672590142529,0.52132102,16583.0,16582.0,0.09691598]
[1672590143797,0.52132102,16583.0,16582.0,0.09700952]
[1672590146271,0.52132102,16583.0,16582.0,0.09691598]
[1672590146528,1.86668154,16583.0,16582.0,0.09691598]
[1672590146774,1.25557843,16583.0,16582.0,0.09691598]
[1672590147254,1.14233602,16583.0,16582.0,0.09691598]
[1672590147496,1.75363281,16583.0,16582.0,0.09691598]
[1672590147810,1.75363281,16583.0,16580.0,1.62821721]
[1672590148058,0.54336831,16581.0,16580.0,1.62821721]
[1672590148307,1.16438331,16581.0,16580.0,1.15820759]
[1672590148555,1.16438331,16581.0,16580.0,1.15811403]
[1672590148556,0.54336831,16581.0,16580.0,1.15811403]
[1672590148812,0.54336831,16581.0,16580.0,1.16511403]
[1672590149069,0.54336831,16581.0,16580.0,1.15811403]
[1672590149313,0.55036831,16581.0,16580.0,1.23220759]
[1672590150015,0.54336831,16581.0,16580.0,1.15820759]
[1672590150269,0.54336831,16581.0,16580.0,1.15811403]
[1672590150520,0.54336831,16581.0,16580.0,1.15820759]
[1672590151009,0.54436831,16581.0,16580.0,1.16820759]
[1672590151268,0.54336831,16581.0,16580.0,1.15820759]
[1672590151530,0.55036831,16581.0,16580.0,1.23211403]
[1672590151768,0.55036831,16581.0,16580.0,1.15811403]
[1672590152026,0.55136831,16581.0,16580.0,1.16811403]
[1672590152522,0.54336831,16581.0,16580.0,1.15811403]
[1672590152780,0.55036831,16581.0,16580.0,1.23211403]
[1672590153018,0.54336831,16581.0,16580.0,1.15811403]
[1672590153263,0.54336831,16581.0,16580.0,1.15804743]
[1672590153871,0.54436831,16581.0,16580.0,1.16804743]
[1672590154111,0.54336831,16581.0,16580.0,1.15804743]
[1672590154351,0.55036831,16581.0,16580.0,1.23204743]
[1672590154567,0.54336831,16581.0,16580.0,1.15804743]
[1672590154809,0.54436831,16581.0,16580.0,1.16804743]
[1672590155054,0.54336831,16581.0,16580.0,1.15804743]
[1672590155362,0.55036831,16581.0,16580.0,1.23204743]
[1672590155593,0.54336831,16581.0,16580.0,1.15804743]
[1672590155803,0.54436831,16581.0,16580.0,1.16804743]
[1672590156046,0.54436831,16581.0,16580.0,1.16814099]
[1672590156933,0.54336831,16581.0,16580.0,1.15814099]
[1672590157177,0.55036831,16581.0,16580.0,1.23214099]
[1672590157681,0.55136831,16581.0,16580.0,1.24204743]
[1672590157970,0.55136831,16581.0,16580.0,1.24214099]
[1672590158236,0.55136831,16581.0,16580.0,1.24204743]
[1672590158930,0.55136831,16581.0,16580.0,1.24214099]
[1672590159198,0.55136831,16581.0,16580.0,1.24204743]
[1672590159859,0.55136831,16581.0,16580.0,1.24214099]
[1672590160135,0.55136831,16581.0,16580.0,1.24204743]
[1672590167997,0.55136831,16581.0,16580.0,0.79330191]
[1672590168246,1.77693569,16581.0,16580.0,0.79330191]
[1672590168495,1.15592069,16581.0,16580.0,0.79330191]
[1672590169982,1.77693569,16581.0,16580.0,0.79330191]
[1672590170254,1.15592069,16581.0,16580.0,0.79330191]
[1672590170595,1.77693569,16581.0,16580.0,0.79330191]
[1672590171758,1.15592069,16581.0,16580.0,0.79330191]
[1672590171993,1.77693569,16581.0,16580.0,0.19026651]
[1672590173254,1.15592069,16581.0,16580.0,0.19026651]
[1672590173743,1.15592069,16581.0,16580.0,0.19017393]
[1672590181787,1.15592069,16581.0,16580.0,0.19026749]
[1672590182069,1.15592069,16581.0,16580.0,0.19017393]
[1672590183133,1.15592069,16581.0,16580.0,0.19026749]
[1672590183287,1.15592069,16581.0,16580.0,0.19017393]
[1672590184227,1.15592069,16581.0,16580.0,0.19026749]
[1672590184985,1.15592069,16581.0,16580.0,0.19017393]
[1672590190692,1.15592069,16581.0,16580.0,0.19026749]
[1672590191915,1.15592069,16581.0,16580.0,0.19017393]
[1672590192158,1.15592069,16581.0,16580.0,0.19026749]
[1672590192422,1.15592069,16581.0,16580.0,0.19017393]
[1672590192679,1.77693569,16581.0,16580.0,0.19017393]
[1672590193178,1.15592069,16581.0,16580.0,0.19017393]
[1672590194455,1.15592069,16581.0,16580.0,0.19026749]
[1672590196708,1.15592069,16581.0,16580.0,0.19017393]
[1672590198319,1.15592069,16581.0,16580.0,0.19010721]
[1672590200204,1.77693569,16581.0,16580.0,0.19010721]
[1672590200461,0.55136831,16581.0,16580.0,1.77763516]
[1672590200705,0.008,16581.0,16580.0,1.77763516]
[1672590201216,0.008,16581.0,16580.0,2.38077116]
[1672590201469,0.008,16581.0,16580.0,2.49302216]
[1672590202245,0.008,16581.0,16580.0,2.38077116]
[1672590202746,0.008,16581.0,16580.0,2.49302216]
[1672590202983,0.008,16581.0,16580.0,2.38077116]
[1672590203481,0.008,16581.0,16580.0,2.49302216]
[1672590203986,0.008,16581.0,16580.0,2.38077116]
[1672590204976,0.008,16581.0,16580.0,2.49302216]
[1672590205229,0.46058006,16581.0,16580.0,2.49302216]
[1672590205483,0.008,16581.0,16580.0,2.38077116]
[1672590205977,0.008,16581.0,16580.0,2.49302216]
[1672590206215,0.46054267,16581.0,16580.0,2.49302216]
[1672590206459,0.46054267,16581.0,16580.0,2.38077116]
[1672590213988,0.46054267,16581.0,16580.0,2.98390716]
[1672590214240,0.46054267,16581.0,16580.0,3.09615816]
[1672590214241,0.82251419,16581.0,16580.0,3.09615816]
[1672590214490,0.82251419,16581.0,16580.0,2.98390716]
[1672590221477,0.82251419,16581.0,16580.0,2.98380701]
[1672590222771,0.82251419,16581.0,16580.0,3.28380701]
[1672590223016,0.82251419,16581.0,16580.0,3.39605801]
[1672590224006,1.0939501,16581.0,16580.0,3.39605801]
[1672590224251,0.64140743,16581.0,16580.0,3.28380701]
[1672590224493,1.0939501,16581.0,16580.0,3.28380701]
[1672590224738,1.09394046,16581.0,16580.0,3.28380701]
[1672590225199,0.82251419,16581.0,16580.0,3.28380701]
[1672590227312,1.09393914,16581.0,16580.0,3.28380701]
[1672590227613,0.82251419,16581.0,16580.0,3.28380701]
[1672590228113,1.09393896,16581.0,16580.0,3.28380701]
[1672590228617,0.64139629,16581.0,16580.0,3.28380701]
[1672590230705,0.64139629,16581.0,16580.0,3.98380701]
[1672590230950,0.64139629,16581.0,16580.0,4.09605801]
[1672590234368,0.46039721,16581.0,16580.0,4.09605801]
[1672590234606,0.46039721,16581.0,16580.0,3.5818628]
[1672590234857,0.18897244,16581.0,16580.0,4.19278023]
[1672590235412,0.008,16581.0,16580.0,3.8834228]
[1672590235888,0.008,16581.0,16580.0,4.41673912]
[1672590236874,0.008,16581.0,16580.0,3.8834228]
[1672590239361,0.008,16581.0,16580.0,4.3925164]
[1672590241482,0.008,16581.0,16580.0,3.8834228]
[1672590241735,0.008,16581.0,16580.0,4.34372393]
[1672590243371,0.008,16581.0,16580.0,3.8834228]
[1672590243865,0.008,16581.0,16580.0,4.42307079]
[1672590245161,0.008,16581.0,16580.0,3.8834228]
[1672590245914,0.008,16581.0,16580.0,4.32979952]
[1672590246158,0.008,16581.0,16580.0,3.8834228]
[1672590248906,0.008,16581.0,16580.0,4.50247659]
[1672590249654,0.008,16581.0,16580.0,4.20091659]
[1672590251155,0.008,16581.0,16580.0,3.5818628]
[1672590251441,0.008,16581.0,16580.0,4.16059324]
[1672590252183,0.008,16581.0,16580.0,4.14016773]
[1672590253139,0.008,16581.0,16580.0,3.5818628]
[1672590253383,0.008,16581.0,16580.0,3.8834228]
[1672590254297,0.008,16581.0,16580.0,4.47236557]
[1672590254636,0.008,16581.0,16580.0,3.8834228]
[1672590256095,0.008,16581.0,16580.0,4.41433467]
[1672590256764,0.008,16581.0,16580.0,3.8834228]
[1672590263955,0.008,16581.0,16580.0,4.34832119]
[1672590265969,0.008,16581.0,16580.0,3.8834228]
[1672590266474,0.008,16581.0,16580.0,4.40667842]
[1672590268183,0.008,16581.0,16580.0,4.58708948]
[1672590268423,0.008,16581.0,16580.0,4.06383386]
[1672590268685,0.008,16581.0,16580.0,4.5479579]
[1672590270040,0.008,16581.0,16580.0,4.06383386]
[1672590270551,0.008,16581.0,16580.0,3.81096025]
[1672590270800,0.008,16581.0,16580.0,3.36383386]
[1672590271050,0.008,16581.0,16580.0,3.96441943]
[1672590271305,0.008,16581.0,16580.0,3.84961768]
[1672590271567,0.008,16581.0,16580.0,4.54961768]
[1672590272071,0.008,16581.0,16580.0,4.06383386]
[1672590272325,0.008,16581.0,16580.0,5.64504264]
[1672590272539,0.45239721,16583.0,16580.0,5.2253054]
[1672590272787,0.45239721,16583.0,16581.0,1.27010318]
[1672590273029,0.45239721,16583.0,16582.0,2.39152418]
[1672590273275,0.45239721,16583.0,16582.0,2.69152418]
[1672590273768,0.51839721,16583.0,16582.0,2.69152418]
[1672590274022,0.45239721,16583.0,16582.0,3.49452197]
[1672590274259,0.63339629,16583.0,16582.0,4.04092278]
[1672590274506,0.63328082,16583.0,16582.0,3.5708196]
[1672590275276,0.69928082,16583.0,16582.0,3.5778196]
[1672590276784,0.69928082,16583.0,16582.0,3.57791291]
[1672590277033,0.3373093,16583.0,16582.0,3.57791291]
[1672590277284,0.51832947,16583.0,16582.0,4.04801609]
[1672590277533,0.88030099,16583.0,16582.0,3.34801609]
[1672590277774,0.88030099,16583.0,16582.0,2.87791291]
[1672590278477,0.88030099,16583.0,16582.0,3.57791291]
[1672590279765,0.69928082,16583.0,16582.0,3.57791291]
[1672590280011,0.88029911,16583.0,16582.0,3.57791291]
[1672590281757,0.88029911,16583.0,16582.0,4.04801609]
[1672590282791,0.51832759,16583.0,16582.0,4.04801609]
[1672590284703,0.51832759,16583.0,16582.0,3.34801609]
[1672590285081,0.88029911,16583.0,16582.0,3.34801609]
[1672590285501,0.51832759,16583.0,16582.0,4.04801609]
[1672590286534,0.51832759,16583.0,16582.0,3.57791291]
[1672590287297,0.51832759,16583.0,16582.0,4.04801609]
[1672590291607,0.51832759,16583.0,16582.0,3.34801609]
[1672590292477,0.51832759,16583.0,16582.0,4.04801609]
[1672590293918,0.24701829,16583.0,16582.0,4.04801609]
[1672590295702,0.51832759,16583.0,16582.0,4.04801609]
[1672590296457,0.51832759,16583.0,16582.0,4.04794646]
[1672590301924,0.51832759,16583.0,16582.0,3.34794646]
[1672590302936,0.51832759,16583.0,16582.0,4.04794646]
[1672590310638,0.88029911,16583.0,16582.0,4.04794646]
[1672590311380,0.88033228,16583.0,16582.0,4.04794646]
[1672590312451,0.51836076,16583.0,16582.0,4.04794646]
[1672590316248,0.88033228,16583.0,16582.0,4.04785315]
[1672590316499,0.69928082,16583.0,16582.0,4.04785315]
[1672590317904,0.69928082,16583.0,16582.0,3.93569078]
[1672590318160,0.69928082,16583.0,16582.0,4.04785578]
[1672590318702,0.69928082,16583.0,16582.0,3.93569078]
[1672590318939,0.69928082,16583.0,16582.0,4.04785578]
[1672590319960,0.69928082,16583.0,16582.0,4.04794909]
[1672590322501,0.69928082,16583.0,16582.0,3.34794909]
[1672590322741,0.69928082,16583.0,16582.0,3.23578409]
[1672590323275,0.69928082,16583.0,16582.0,3.23569078]
[1672590323495,0.69928082,16583.0,16582.0,3.93578409]
[1672590323744,0.69928082,16583.0,16582.0,4.04794909]
[1672590325307,0.69928082,16583.0,16582.0,3.93578409]
[1672590326082,0.69428082,16583.0,16582.0,3.93578409]
[1672590326578,0.69428082,16583.0,16582.0,4.04794909]
[1672590331981,0.69428082,16583.0,16582.0,3.34794909]
[1672590332235,0.69428082,16583.0,16582.0,3.23578409]
[1672590332722,0.69428082,16583.0,16582.0,3.93578409]
[1672590332977,0.69428082,16583.0,16582.0,4.04794909]
[1672590333720,0.69428082,16583.0,16582.0,3.93578409]
[1672590334228,0.69428082,16583.0,16582.0,3.4655876]
[1672590334476,0.69428082,16583.0,16582.0,3.93569078]
[1672590337413,0.69428082,16583.0,16582.0,4.04785578]
[1672590337667,0.69428082,16583.0,16582.0,4.04794909]
[1672590338488,0.69428082,16583.0,16582.0,3.34794909]
[1672590338796,0.69428082,16583.0,16582.0,3.23578409]
[1672590339553,0.69428082,16583.0,16582.0,3.93578409]
[1672590339803,0.69428082,16583.0,16582.0,4.04794909]
[1672590340530,1.14682349,16583.0,16582.0,4.04794909]
[1672590340787,0.69428082,16583.0,16582.0,4.04794909]
[1672590341026,0.69428082,16583.0,16582.0,3.93578409]
[1672590342026,1.14682349,16583.0,16582.0,3.93578409]
[1672590342277,0.69428082,16583.0,16582.0,3.93578409]
[1672590342514,0.69428082,16583.0,16582.0,4.04794909]
[1672590342758,0.69428082,16583.0,16582.0,3.93578409]
[1672590343224,0.69428082,16583.0,16582.0,4.04794909]
[1672590343473,1.14682349,16583.0,16582.0,4.04794909]
[1672590343730,0.69428082,16583.0,16582.0,3.93578409]
[1672590344243,0.69428082,16583.0,16582.0,3.4655876]
[1672590344476,1.14707973,16583.0,16582.0,3.4655876]
[1672590344994,0.87551419,16583.0,16582.0,3.4655876]
[1672590345669,0.87551419,16583.0,16582.0,2.7655876]
[1672590345951,0.87551419,16583.0,16582.0,3.23569078]
[1672590346550,0.87551419,16583.0,16582.0,3.93569078]
[1672590346782,0.87551419,16583.0,16582.0,4.04785578]
[1672590347783,0.87551419,16583.0,16582.0,4.04794909]
[1672590349508,0.87551419,16583.0,16582.0,3.57767476]
[1672590349755,0.87551419,16583.0,16582.0,3.46550976]
[1672590350700,0.87551419,16583.0,16582.0,3.93561294]
[1672590350951,0.87551419,16583.0,16582.0,4.04777794]
[1672590351519,0.69453028,16583.0,16582.0,4.04787125]
[1672590351996,1.14707295,16583.0,16582.0,4.04787125]
[1672590352242,0.87556456,16583.0,16582.0,4.04787125]
[1672590352491,0.69453028,16583.0,16582.0,4.04787125]
[1672590352746,0.51359239,16583.0,16582.0,4.04787125]
[1672590352986,0.87556508,16583.0,16582.0,4.04787125]